[Event "FIDE WCCC Girls-10 2024"]
[Site "Montesilvano"]
[Date "2024.11.23"]
[Round "8.26"]
[White "Stoica, Melina-Theodora"]
[Black "Poliak, Margarita"]
[Result "1/2-1/2"]
[Annotator "NA RC"]
[ECO "D35"]
[WhiteElo "1675"]
[BlackElo "1514"]
[PlyCount "94"]
[EventDate "2024.11.18"]
[EventType "swiss"]
[EventCountry "ITA"]
[SourceTitle "playchess.com"]
[Source "ChessBase"]
[SourceQuality "1"]
[TimeControl "5400+30"]

1. d4 {[%emt 0:00:02]} Nf6 {[%emt 0:00:07]} 2. Nf3 {[%emt 0:00:08]} e6 {[%emt 0:00:17]} 3. c4 {[%emt 1:31:50]} d5 {[%emt 0:00:13]} 4. Nc3 {[%emt 0:00:00]} Be7 {[%emt 0:00:34]} 5. Bf4 {[%emt 0:00:00]} c6 {[%emt 0:02:12]} 6. cxd5 {[%emt 0:00:00]} exd5 {[%emt 0:00:36]} 7. e3 {[%emt 0:02:00]} O-O {[%emt 0:14:05]} 8. Be2 {[%emt 0:00:00]} Nbd7 {[%emt 0:01:26]} 9. h3 {[%emt 0:00:00]} b5 {[%emt 0:07:43]} 10. O-O {[%emt 0:00:00]} a5 {[%emt 0:05:46]} 11. a3 {[%emt 0:00:00]} Bb7 {[%emt 0:02:49]} 12. Qb3 {[%emt 0:00:00]} Qb6 {[%emt 0:06:51]} 13. Ne5 {[%emt 0:00:00]} Nxe5 {[%emt 0:04:56]} 14. Bxe5 {[%emt 0:00:00]} Nd7 {[%emt 0:07:28]} 15. Bg3 {[%emt 0:00:00]} Ba6 {[%emt 0:04:12]} 16. Rac1 {[%emt 0:00:00]} b4 {[%emt 0:08:22]} 17. Bxa6 {[%emt 0:00:00]} Rxa6 {[%emt 0:01:28]} 18. axb4 {[%emt 0:02:51]} axb4 {[%emt 0:02:02]} 19. Ne2 {[%emt 0:00:17]} Nf6 {[%emt 0:02:20]} 20. Rc2 {[%emt 0:00:55]} Rfa8 {[%emt 0:01:53]} 21. Rfc1 {[%emt 0:00:16]} Qb5 {[%emt 0:00:38]} 22. Nf4 {[%emt 0:01:17]} Ra1 {[%emt 0:01:52]} 23. Kh2 {[%emt 0:00:24]} Rxc1 {[%emt 0:00:44]} 24. Rxc1 {[%emt 0:00:07]} h6 {[%emt 0:00:52]} 25. Qd3 {[%emt 0:00:38]} Qb7 {[%emt 0:03:06]} 26. Qc2 {[%emt 0:00:32]} Rc8 {[%emt 0:01:33]} 27. Nd3 {[%emt 0:00:35]} Ne4 {[%emt 0:03:22]} 28. Ne5 {[%emt 0:00:59]} c5 {[%emt 0:00:26]} 29. dxc5 {[%emt 0:00:51]} Rxc5 {[%emt 0:00:12]} 30. Qd1 {[%emt 0:00:20]} Rxc1 {[%emt 0:01:18]} 31. Qxc1 {[%emt 0:00:09]} Nxg3 {[%emt 0:00:31]} 32. fxg3 {[%emt 0:00:36]} Bf6 {[%emt 0:01:12]} 33. Ng4 {[%emt 0:00:37]} Bg5 {[%emt 0:00:49]} 34. h4 {[%emt 0:00:21]} Be7 {[%emt 0:00:29]} 35. Qd2 {[%emt 0:00:19]} Qc7 {[%emt 0:02:05]} 36. Qxd5 {[%emt 0:00:17]} Bxh4 {[%emt 0:00:32]} 37. Qa8+ {[%emt 0:01:27]} Kh7 {[%emt 0:01:43]} 38. Qe4+ {[%emt 0:00:08]} g6 {[%emt 0:00:23]} 39. Qe5 {[%emt 0:00:52]} Qxe5 {[%emt 0:00:11]} 40. Nxe5 {[%emt 0:00:07]} Bf6 {[%emt 0:00:24]} 41. Nd3 {[%emt 0:00:06]} Be7 {[%emt 0:00:10]} 42. b3 {[%emt 0:00:09]} Kg7 {[%emt 0:00:10]} 43. g4 {[%emt 0:00:39]} Kf6 {[%emt 0:00:11]} 44. Kg3 {[%emt 0:00:10]} Ke6 {[%emt 0:00:45]} 45. Kf3 {[%emt 0:00:16]} Kd5 {[%emt 0:01:28]} 46. Nf4+ {[%emt 0:00:30]} Ke5 {[%emt 0:00:20]} 47. Nd3+ {[%emt 0:00:08]} Kd5 {[%emt 0:00:18]} 1/2-1/2

[Event "FIDE WCCC Girls-10 2024"]
[Site "Montesilvano"]
[Date "2024.11.23"]
[Round "8.27"]
[White "Saltkhutsishvili, Sara"]
[Black "Constantin-Ciuntu, Anne-Sophie"]
[Result "0-1"]
[Annotator "NA RC"]
[ECO "B07"]
[WhiteElo "1546"]
[BlackElo "1672"]
[PlyCount "184"]
[EventDate "2024.11.18"]
[EventType "swiss"]
[EventCountry "ITA"]
[SourceTitle "playchess.com"]
[Source "ChessBase"]
[SourceQuality "1"]
[TimeControl "5400+30"]

1. e4 {[%emt 0:05:01]} d6 {[%emt 0:00:06]} 2. d4 {[%emt 0:00:38]} Nf6 {[%emt 0:00:10]} 3. Nc3 {[%emt 0:00:47]} Nbd7 {[%emt 0:00:09]} 4. f4 {[%emt 0:01:08]} e6 {[%emt 0:01:52]} 5. Nf3 {[%emt 0:03:44]} c6 {[%emt 0:03:28]} 6. Bd3 {[%emt 0:06:55]} Qc7 {[%emt 0:03:09]} 7. O-O {[%emt 0:07:39]} Nb6 {[%emt 0:06:22]} 8. e5 {[%emt 0:14:22]} Nfd7 {[%emt 0:08:25]} 9. f5 {[%emt 0:07:48]} exf5 {[%emt 0:11:25]} 10. exd6 {[%emt 0:10:23]} Bxd6 {[%emt 0:07:11]} 11. Re1+ {[%emt 0:02:47]} Kf8 {[%emt 0:16:29]} 12. Bg5 {[%emt 0:14:36]} h6 {[%emt 0:04:17]} 13. Qe2 {[%emt 0:01:43]} g6 {[%emt 0:05:42]} 14. Be7+ {[%emt 0:02:15]} Kg7 {[%emt 0:02:23]} 15. Qf2 {[%emt 0:02:53]} Re8 {[%emt 0:05:05]} 16. Bxd6 {[%emt 0:01:55]} Rxe1+ {[%emt 0:01:34]} 17. Rxe1 {[%emt 0:00:25]} Qxd6 {[%emt 0:00:16]} 18. a4 {[%emt 0:07:18]} Qb4 {[%emt 0:02:43]} 19. Qg3 {[%emt 0:01:24]} Nf6 {[%emt 0:02:04]} 20. Nh4 {[%emt 0:02:36]} Qxd4+ {[%emt 0:00:47]} 21. Kh1 {[%emt 0:00:16]} Ng4 {[%emt 0:01:59]} 22. Nd1 {[%emt 0:01:27]} f4 {[%emt 0:04:30]} 23. Qf3 {[%emt 0:00:16]} Ne5 {[%emt 0:01:10]} 24. Qe2 {[%emt 0:00:47]} Nxd3 {[%emt 0:00:43]} 25. cxd3 {[%emt 0:00:05]} Nxa4 {[%emt 0:01:02]} 26. Nf3 {[%emt 0:01:03]} Qd6 {[%emt 0:01:10]} 27. b3 {[%emt 0:00:46]} Nc5 {[%emt 0:00:35]} 28. Nf2 {[%emt 0:00:56]} Be6 {[%emt 0:01:20]} 29. b4 {[%emt 0:00:31]} Nb3 {[%emt 0:01:21]} 30. d4 {[%emt 0:01:10]} Qxb4 {[%emt 0:01:11]} 31. Qe5+ {[%emt 0:00:31]} Kh7 {[%emt 0:00:26]} 32. Nd3 {[%emt 0:00:40]} Qa5 {[%emt 0:01:11]} 33. Qd6 {[%emt 0:00:48]} Rd8 {[%emt 0:02:08]} 34. Qe7 {[%emt 0:00:37]} Rd7 {[%emt 0:00:59]} 35. Qh4 {[%emt 0:00:32]} Nxd4 {[%emt 0:00:36]} 36. Nfe5 {[%emt 0:00:52]} Nf5 {[%emt 0:01:45]} 37. Qxf4 {[%emt 0:00:20]} Rd4 {[%emt 0:00:47]} 38. Qf2 {[%emt 0:00:26]} Ra4 {[%emt 0:01:37]} 39. Nf3 {[%emt 0:00:47]} Ra2 {[%emt 0:00:39]} 40. Qf1 {[%emt 0:00:18]} Bd5 {[%emt 0:00:44]} 41. Nde5 {[%emt 0:00:41]} Bxf3 {[%emt 0:00:31]} 42. Nxf3 {[%emt 0:00:21]} Qb6 {[%emt 0:00:43]} 43. Qc4 {[%emt 0:00:40]} Qb2 {[%emt 0:00:17]} 44. Qxf7+ {[%emt 0:00:20]} Ng7 {[%emt 0:00:27]} 45. Rg1 {[%emt 0:00:17]} Ra1 {[%emt 0:00:35]} 46. h3 {[%emt 0:00:18]} Rxg1+ {[%emt 0:00:16]} 47. Kxg1 {[%emt 0:00:04]} a5 {[%emt 0:00:26]} 48. Qe7 {[%emt 0:00:46]} a4 {[%emt 0:00:32]} 49. Ne5 {[%emt 0:00:15]} Qd4+ {[%emt 0:00:41]} 50. Kh1 {[%emt 0:02:23]} Qe3 {[%emt 0:00:47]} 51. Qf6 {[%emt 0:00:00]} Qg5 {[%emt 0:00:32]} 52. Qd6 {[%emt 0:00:00]} a3 {[%emt 0:00:30]} 53. Nf7 {[%emt 0:00:43]} Qc1+ {[%emt 0:00:12]} 54. Kh2 {[%emt 0:00:02]} a2 {[%emt 0:00:38]} 55. Qb8 {[%emt 0:00:28]} g5 {[%emt 0:00:52]} 56. Qh8+ {[%emt 0:00:00]} Kg6 {[%emt 0:00:07]} 57. Ne5+ {[%emt 0:00:00]} Kf5 {[%emt 0:00:48]} 58. Qh7+ {[%emt 0:00:00]} Kxe5 {[%emt 0:00:10]} 59. Qxg7+ {[%emt 0:00:00]} Kd6 {[%emt 0:00:15]} 60. Qd4+ {[%emt 0:00:09]} Kc7 {[%emt 0:00:23]} 61. Qg7+ {[%emt 0:00:32]} Kb6 {[%emt 0:00:31]} 62. Qd4+ {[%emt 0:00:16]} Kb5 {[%emt 0:00:20]} 63. Qe5+ {[%emt 0:00:32]} Ka4 {[%emt 0:00:31]} 64. Qd4+ {[%emt 0:00:25]} Kb5 {[%emt 0:00:57]} 65. Qe5+ {[%emt 0:00:20]} c5 {[%emt 0:00:15]} 66. Qe2+ {[%emt 0:00:31]} Qc4 {[%emt 0:00:14]} 67. Qb2+ {[%emt 0:00:18]} Ka5 {[%emt 0:00:50]} 68. Qa3+ {[%emt 0:00:37]} Kb6 {[%emt 0:00:18]} 69. Qb2+ {[%emt 0:00:10]} Kc7 {[%emt 0:00:24]} 70. Qe5+ {[%emt 0:00:33]} Kc8 {[%emt 0:00:45]} 71. Qh8+ {[%emt 0:00:34]} Kd7 {[%emt 0:00:33]} 72. Qg7+ {[%emt 0:00:24]} Ke8 {[%emt 0:00:31]} 73. Qh8+ {[%emt 0:00:51]} Ke7 {[%emt 0:00:25]} 74. Qe5+ {[%emt 0:00:46]} Qe6 {[%emt 0:00:19]} 75. Qc7+ {[%emt 0:01:24]} Kf6 {[%emt 0:00:20]} 76. Qd8+ {[%emt 0:00:33]} Kf5 {[%emt 0:00:38]} 77. Qd3+ {[%emt 0:00:30]} Ke5 {[%emt 0:00:51]} 78. Qe3+ {[%emt 0:00:44]} Kd6 {[%emt 0:00:33]} 79. Qd3+ {[%emt 0:00:49]} Kc6 {[%emt 0:00:20]} 80. Qc3 {[%emt 0:01:47]} Qd6+ {[%emt 0:00:15]} 81. g3 {[%emt 0:00:22]} Qd5 {[%emt 0:01:11]} 82. Qf6+ {[%emt 0:00:12]} Kb5 {[%emt 0:00:15]} 83. Qb2+ {[%emt 0:00:16]} Ka4 {[%emt 0:00:38]} 84. Qh8 {[%emt 0:01:27]} Qd2+ {[%emt 0:00:23]} 85. Kh1 {[%emt 0:00:13]} Qc1+ {[%emt 0:00:22]} 86. Kh2 {[%emt 0:00:26]} a1=Q {[%emt 0:00:23]} 87. Qa8+ {[%emt 0:00:16]} Kb4 {[%emt 0:00:26]} 88. Qxb7+ {[%emt 0:00:03]} Kc4 {[%emt 0:00:27]} 89. Qf7+ {[%emt 0:00:16]} Kd3 {[%emt 0:00:37]} 90. Qd5+ {[%emt 0:00:36]} Qd4 {[%emt 0:00:19]} 91. Qf3+ {[%emt 0:00:49]} Qce3 {[%emt 0:00:15]} 92. Qf5+ {[%emt 0:00:10]} Kd2 {[%emt 0:00:19]} 0-1

[Event "FIDE WCCC Girls-10 2024"]
[Site "Montesilvano"]
[Date "2024.11.23"]
[Round "8.28"]
[White "Mohamed Ahmed, Ghidaa"]
[Black "Mamarasulova, Yasmina"]
[Result "1-0"]
[Annotator "NA RC"]
[ECO "E60"]
[WhiteElo "1638"]
[BlackElo "1444"]
[PlyCount "143"]
[EventDate "2024.11.18"]
[EventType "swiss"]
[EventCountry "ITA"]
[SourceTitle "playchess.com"]
[Source "ChessBase"]
[SourceQuality "1"]
[TimeControl "5400+30"]

1. b3 {[%emt 0:00:03]} c5 {[%emt 0:00:41]} 2. Bb2 {[%emt 0:00:07]} Nc6 {[%emt 0:05:50]} 3. e3 {[%emt 0:00:12]} Nf6 {[%emt 0:05:05]} 4. Be2 {[%emt 0:01:07]} g6 {[%emt 0:00:50]} 5. Nf3 {[%emt 0:00:25]} Bg7 {[%emt 0:00:27]} 6. O-O {[%emt 0:00:18]} O-O {[%emt 0:00:18]} 7. c4 {[%emt 0:00:24]} d6 {[%emt 0:04:10]} 8. d4 {[%emt 0:01:13]} e6 {[%emt 0:22:26]} 9. Nbd2 {[%emt 0:02:51]} b6 {[%emt 0:07:28]} 10. Re1 {[%emt 0:02:41]} d5 {[%emt 0:01:30]} 11. a3 {[%emt 0:08:39]} Ne4 {[%emt 0:09:02]} 12. Rb1 {[%emt 0:21:22]} Nxd2 {[%emt 0:08:19]} 13. Qxd2 {[%emt 0:01:23]} dxc4 {[%emt 0:00:13]} 14. bxc4 {[%emt 0:00:41]} Qd7 {[%emt 0:03:04]} 15. dxc5 {[%emt 0:00:39]} Qxd2 {[%emt 0:00:39]} 16. Nxd2 {[%emt 0:00:02]} bxc5 {[%emt 0:04:27]} 17. Bxg7 {[%emt 0:03:51]} Kxg7 {[%emt 0:00:08]} 18. Nb3 {[%emt 0:00:14]} a5 {[%emt 0:02:10]} 19. Nxc5 {[%emt 0:00:22]} e5 {[%emt 0:00:30]} 20. Bf3 {[%emt 0:00:30]} Bf5 {[%emt 0:02:22]} 21. Bxc6 {[%emt 0:03:05]} Bxb1 {[%emt 0:00:57]} 22. Bxa8 {[%emt 0:00:08]} Ba2 {[%emt 0:00:19]} 23. Bd5 {[%emt 0:01:20]} Rc8 {[%emt 0:00:36]} 24. Nd3 {[%emt 0:02:22]} e4 {[%emt 0:01:36]} 25. Nf4 {[%emt 0:07:06]} f5 {[%emt 0:02:21]} 26. h3 {[%emt 0:02:38]} Bxc4 {[%emt 0:02:22]} 27. Rc1 {[%emt 0:00:27]} Ba6 {[%emt 0:00:08]} 28. Rxc8 {[%emt 0:00:15]} Bxc8 {[%emt 0:00:05]} 29. Ne6+ {[%emt 0:01:34]} Bxe6 {[%emt 0:02:01]} 30. Bxe6 {[%emt 0:00:06]} Kf6 {[%emt 0:00:09]} 31. Bb3 {[%emt 0:00:27]} h6 {[%emt 0:00:20]} 32. Kf1 {[%emt 0:00:41]} g5 {[%emt 0:00:10]} 33. Ke2 {[%emt 0:00:15]} f4 {[%emt 0:00:24]} 34. exf4 {[%emt 0:05:22]} gxf4 {[%emt 0:16:23]} 35. g3 {[%emt 0:02:27]} Kg5 {[%emt 0:00:00]} 36. gxf4+ {[%emt 0:06:06]} Kxf4 {[%emt 0:00:00]} 37. a4 {[%emt 0:06:02]} h5 {[%emt 0:00:00]} 38. Bc2 {[%emt 0:01:44]} h4 {[%emt 0:00:00]} 39. Bb1 {[%emt 0:00:30]} Kg5 {[%emt 0:02:30]} 40. Bxe4 {[%emt 0:20:51]} Kf4 {[%emt 0:00:00]} 41. Bc6 {[%emt 0:00:00]} Ke5 {[%emt 0:00:00]} 42. Ke3 {[%emt 0:00:00]} Kf5 {[%emt 0:00:00]} 43. Kf3 {[%emt 0:00:00]} Kg5 {[%emt 0:00:00]} 44. Ke4 {[%emt 0:00:00]} Kh6 {[%emt 0:00:00]} 45. f4 {[%emt 0:00:00]} Kg6 {[%emt 0:00:00]} 46. Ke5 {[%emt 0:00:00]} Kf7 {[%emt 0:00:00]} 47. f5 {[%emt 0:00:00]} Ke7 {[%emt 0:00:00]} 48. Kd5 {[%emt 0:00:00]} Kf6 {[%emt 0:00:00]} 49. Kc5 {[%emt 0:00:00]} Kxf5 {[%emt 0:00:00]} 50. Kb5 {[%emt 0:00:00]} Ke6 {[%emt 0:00:00]} 51. Kxa5 {[%emt 0:00:00]} Ke7 {[%emt 0:00:41]} 52. Kb6 {[%emt 0:00:00]} Kd8 {[%emt 0:00:05]} 53. a5 {[%emt 0:00:00]} Kc8 {[%emt 0:00:10]} 54. a6 {[%emt 0:00:00]} Kd8 {[%emt 0:00:11]} 55. a7 {[%emt 0:00:00]} Ke7 {[%emt 0:00:19]} 56. a8=Q {[%emt 0:00:00]} Ke6 {[%emt 0:07:04]} 57. Qe8+ {[%emt 0:00:00]} Kf5 {[%emt 0:00:00]} 58. Be4+ {[%emt 0:00:00]} Kf4 {[%emt 0:00:00]} 59. Qh5 {[%emt 0:00:00]} Kxe4 {[%emt 0:00:00]} 60. Qxh4+ {[%emt 0:00:00]} Kf5 {[%emt 0:00:00]} 61. Qg4+ {[%emt 0:00:00]} Kf6 {[%emt 0:00:00]} 62. h4 {[%emt 0:00:00]} Kf7 {[%emt 0:00:00]} 63. h5 {[%emt 0:00:00]} Kf8 {[%emt 0:00:00]} 64. h6 {[%emt 0:00:00]} Kf7 {[%emt 0:04:00]} 65. h7 {[%emt 0:00:00]} Ke7 {[%emt 0:00:00]} 66. h8=Q {[%emt 0:00:00]} Kd6 {[%emt 0:00:00]} 67. Qf6+ {[%emt 0:00:00]} Kd5 {[%emt 0:00:00]} 68. Qgg5+ {[%emt 0:00:00]} Kc4 {[%emt 0:00:00]} 69. Qff4+ {[%emt 0:00:00]} Kc3 {[%emt 0:00:00]} 70. Qgg3+ {[%emt 0:00:00]} Kc2 {[%emt 0:00:00]} 71. Qff2+ {[%emt 0:00:00]} Kc1 {[%emt 0:00:00]} 72. Qgg1# {[%emt 0:00:00]} 1-0

[Event "FIDE WCCC Girls-10 2024"]
[Site "Montesilvano"]
[Date "2024.11.23"]
[Round "8.29"]
[White "Milojevic, Dunja"]
[Black "Blakhina Viktoryia"]
[Result "0-1"]
[Annotator "NA RC"]
[ECO "D35"]
[WhiteElo "1610"]
[BlackElo "1436"]
[PlyCount "74"]
[EventDate "2024.11.18"]
[EventType "swiss"]
[EventCountry "ITA"]
[SourceTitle "playchess.com"]
[Source "ChessBase"]
[SourceQuality "1"]
[TimeControl "5400+30"]

1. d4 {[%emt 0:00:49]} Nf6 {[%emt 0:00:16]} 2. Nf3 {[%emt 0:00:52]} d5 {[%emt 0:09:31]} 3. c4 {[%emt 0:00:18]} e6 {[%emt 0:00:50]} 4. Nc3 {[%emt 0:02:12]} c6 {[%emt 0:02:19]} 5. cxd5 {[%emt 0:00:26]} exd5 {[%emt 0:00:10]} 6. Bg5 {[%emt 0:00:11]} Nbd7 {[%emt 0:02:20]} 7. e3 {[%emt 0:00:45]} Bd6 {[%emt 0:00:52]} 8. Bd3 {[%emt 0:00:28]} O-O {[%emt 0:01:36]} 9. O-O {[%emt 0:01:00]} a5 {[%emt 0:02:01]} 10. Qc2 {[%emt 0:01:14]} h6 {[%emt 0:01:16]} 11. Bh4 {[%emt 0:00:59]} b5 {[%emt 0:02:35]} 12. Rac1 {[%emt 0:01:29]} Ba6 {[%emt 0:05:26]} 13. Ne2 {[%emt 0:02:47]} b4 {[%emt 0:03:28]} 14. Bf5 {[%emt 0:08:22]} Qc7 {[%emt 0:09:39]} 15. Rfe1 {[%emt 0:04:30]} Bc4 {[%emt 0:07:09]} 16. b3 {[%emt 0:00:38]} Bb5 {[%emt 0:00:06]} 17. Bd3 {[%emt 0:06:43]} Bxd3 {[%emt 0:06:24]} 18. Qxd3 {[%emt 0:00:05]} Qb6 {[%emt 0:02:46]} 19. Bg3 {[%emt 0:01:31]} Bxg3 {[%emt 0:01:02]} 20. Nxg3 {[%emt 0:00:04]} Rfe8 {[%emt 0:03:12]} 21. Nf5 {[%emt 0:02:11]} Ne4 {[%emt 0:02:13]} 22. Nd2 {[%emt 0:04:51]} Nc3 {[%emt 0:01:42]} 23. Rc2 {[%emt 0:01:45]} a4 {[%emt 0:09:00]} 24. e4 {[%emt 0:24:49]} Qd8 {[%emt 0:13:43]} 25. e5 {[%emt 0:08:11]} axb3 {[%emt 0:05:38]} 26. axb3 {[%emt 0:00:41]} c5 {[%emt 0:02:52]} 27. f4 {[%emt 0:06:12]} Qb6 {[%emt 0:01:47]} 28. Kh1 {[%emt 0:00:53]} Qg6 {[%emt 0:00:53]} 29. g3 {[%emt 0:10:09]} cxd4 {[%emt 0:01:20]} 30. Rcc1 {[%emt 0:03:42]} Ra2 {[%emt 0:01:43]} 31. Nf3 {[%emt 0:01:29]} Nc5 {[%emt 0:00:23]} 32. Qxd4 {[%emt 0:01:31]} Nxb3 {[%emt 0:00:08]} 33. Qxb4 {[%emt 0:00:17]} Nxc1 {[%emt 0:00:58]} 34. Rxc1 {[%emt 0:01:45]} Qxf5 {[%emt 0:00:36]} 35. Qxc3 {[%emt 0:00:07]} Rea8 {[%emt 0:00:46]} 36. Re1 {[%emt 0:00:41]} R8a3 {[%emt 0:00:46]} 37. Nd4 {[%emt 0:00:56]} Qh3 {[%emt 0:00:17]} 0-1

[Event "FIDE WCCC Girls-10 2024"]
[Site "Montesilvano"]
[Date "2024.11.23"]
[Round "8.30"]
[White "Pambieri, Nicole"]
[Black "Rosset, Anna"]
[Result "0-1"]
[Annotator "NA RC"]
[ECO "A29"]
[WhiteElo "1482"]
[BlackElo "1814"]
[PlyCount "152"]
[EventDate "2024.11.18"]
[EventType "swiss"]
[EventCountry "ITA"]
[SourceTitle "playchess.com"]
[Source "ChessBase"]
[SourceQuality "1"]
[TimeControl "5400+30"]

1. c4 {[%emt 0:00:02]} e5 {[%emt 0:00:09]} 2. Nc3 {[%emt 0:00:33]} Nf6 {[%emt 0:00:19]} 3. Nf3 {[%emt 0:00:42]} Nc6 {[%emt 0:00:19]} 4. g3 {[%emt 0:00:14]} Bc5 {[%emt 0:00:19]} 5. Bg2 {[%emt 0:00:16]} O-O {[%emt 0:00:25]} 6. O-O {[%emt 0:00:11]} d6 {[%emt 0:00:13]} 7. d3 {[%emt 0:02:02]} h6 {[%emt 0:00:06]} 8. Bd2 {[%emt 0:00:34]} Bf5 {[%emt 0:01:47]} 9. Na4 {[%emt 0:01:34]} a5 {[%emt 0:01:44]} 10. Nxc5 {[%emt 0:01:27]} dxc5 {[%emt 0:00:06]} 11. a3 {[%emt 0:03:39]} Qd6 {[%emt 0:04:04]} 12. Qb3 {[%emt 0:22:40]} Bg4 {[%emt 0:18:37]} 13. Rfe1 {[%emt 0:05:51]} a4 {[%emt 0:04:19]} 14. Qc3 {[%emt 0:05:08]} Rfe8 {[%emt 0:06:41]} 15. Rad1 {[%emt 0:11:15]} Nd4 {[%emt 0:02:05]} 16. Nxd4 {[%emt 0:17:22]} exd4 {[%emt 0:00:29]} 17. Qc1 {[%emt 0:00:22]} Bxe2 {[%emt 0:03:05]} 18. Bf4 {[%emt 0:01:08]} Qb6 {[%emt 0:03:26]} 19. Rd2 {[%emt 0:00:56]} Bg4 {[%emt 0:04:53]} 20. Rxe8+ {[%emt 0:01:56]} Rxe8 {[%emt 0:00:30]} 21. h3 {[%emt 0:05:10]} Bd7 {[%emt 0:03:05]} 22. Qd1 {[%emt 0:00:30]} g5 {[%emt 0:01:37]} 23. Qf3 {[%emt 0:05:56]} Re1+ {[%emt 0:01:29]} 24. Kh2 {[%emt 0:00:22]} Bc6 {[%emt 0:00:19]} 25. Bxc7 {[%emt 0:01:12]} Qxc7 {[%emt 0:08:09]} 26. Qxf6 {[%emt 0:00:16]} Bxg2 {[%emt 0:02:52]} 27. Kxg2 {[%emt 0:00:10]} Qc6+ {[%emt 0:01:23]} 28. Qxc6 {[%emt 0:00:39]} bxc6 {[%emt 0:32:00]} 29. f3 {[%emt 0:00:20]} Kg7 {[%emt 0:00:00]} 30. Kf2 {[%emt 0:00:13]} Rh1 {[%emt 0:00:00]} 31. Kg2 {[%emt 0:00:14]} Re1 {[%emt 0:00:00]} 32. Kf2 {[%emt 0:00:07]} Rh1 {[%emt 0:00:00]} 33. Kg2 {[%emt 0:00:06]} Rb1 {[%emt 0:00:00]} 34. g4 {[%emt 0:02:02]} Kg6 {[%emt 0:00:00]} 35. Re2 {[%emt 0:07:31]} f6 {[%emt 0:00:00]} 36. Kg3 {[%emt 0:00:58]} Rg1+ {[%emt 0:00:00]} 37. Kf2 {[%emt 0:00:32]} Rd1 {[%emt 0:00:00]} 38. Re6 {[%emt 0:00:19]} Rxd3 {[%emt 0:00:00]} 39. Rxc6 {[%emt 0:00:07]} Rb3 {[%emt 0:00:00]} 40. Rxc5 {[%emt 0:00:21]} Rxb2+ {[%emt 0:00:00]} 41. Kg3 {[%emt 0:00:41]} Rb3 {[%emt 0:00:00]} 42. Rd5 {[%emt 0:00:38]} Rxa3 {[%emt 0:00:00]} 43. Rxd4 {[%emt 0:00:19]} Rc3 {[%emt 0:00:00]} 44. c5 {[%emt 0:00:15]} a3 {[%emt 0:00:00]} 45. Ra4 {[%emt 0:00:14]} h5 {[%emt 0:00:00]} 46. gxh5+ {[%emt 0:01:38]} Kxh5 {[%emt 0:00:00]} 47. c6 {[%emt 0:00:06]} f5 {[%emt 0:00:00]} 48. c7 {[%emt 0:00:04]} Rc2 {[%emt 0:00:00]} 49. f4 {[%emt 0:02:28]} Rc3+ {[%emt 0:00:00]} 50. Kf2 {[%emt 0:00:19]} gxf4 {[%emt 0:00:00]} 51. Rxa3 {[%emt 0:01:30]} Rxc7 {[%emt 0:00:00]} 52. Rf3 {[%emt 0:00:24]} Kg5 {[%emt 0:00:00]} 53. Ke2 {[%emt 0:01:20]} Rc4 {[%emt 0:00:00]} 54. Kd3 {[%emt 0:00:24]} Ra4 {[%emt 0:00:00]} 55. Ke2 {[%emt 0:01:02]} Rd4 {[%emt 0:00:00]} 56. Kf2 {[%emt 0:00:52]} Re4 {[%emt 0:00:00]} 57. Kf1 {[%emt 0:00:54]} Re8 {[%emt 0:01:03]} 58. Kf2 {[%emt 0:00:22]} Rh8 {[%emt 0:00:05]} 59. Kg2 {[%emt 0:00:13]} Kf6 {[%emt 0:00:17]} 60. Rxf4 {[%emt 0:00:19]} Ke5 {[%emt 0:00:20]} 61. Kg3 {[%emt 0:00:31]} Rxh3+ {[%emt 0:00:17]} 62. Kxh3 {[%emt 0:00:42]} Kxf4 {[%emt 0:00:07]} 63. Kg2 {[%emt 0:00:07]} Ke3 {[%emt 0:00:26]} 64. Kf1 {[%emt 0:00:10]} Kf3 {[%emt 0:00:09]} 65. Ke1 {[%emt 0:00:12]} Kg2 {[%emt 0:00:06]} 66. Ke2 {[%emt 0:00:03]} f4 {[%emt 0:00:02]} 67. Ke1 {[%emt 0:00:09]} f3 {[%emt 0:00:03]} 68. Kd1 {[%emt 0:00:09]} f2 {[%emt 0:00:05]} 69. Kd2 {[%emt 0:00:05]} f1=Q {[%emt 0:00:07]} 70. Kc3 {[%emt 0:00:07]} Qd1 {[%emt 0:00:05]} 71. Kb2 {[%emt 0:00:06]} Kf3 {[%emt 0:00:04]} 72. Ka3 {[%emt 0:00:07]} Qb1 {[%emt 0:00:05]} 73. Ka4 {[%emt 0:00:07]} Ke4 {[%emt 0:00:04]} 74. Ka5 {[%emt 0:00:06]} Kd5 {[%emt 0:00:06]} 75. Ka6 {[%emt 0:00:05]} Kc6 {[%emt 0:00:03]} 76. Ka7 {[%emt 0:00:08]} Qb7# {[%emt 0:00:06]} 0-1

[Event "FIDE WCCC Girls-10 2024"]
[Site "Montesilvano"]
[Date "2024.11.23"]
[Round "8.31"]
[White "Gastaldo, Agathe"]
[Black "Babii, Oriiana"]
[Result "1-0"]
[Annotator "NA RC"]
[ECO "B76"]
[WhiteElo "1589"]
[BlackElo "1481"]
[PlyCount "51"]
[EventDate "2024.11.18"]
[EventType "swiss"]
[EventCountry "ITA"]
[SourceTitle "playchess.com"]
[Source "ChessBase"]
[SourceQuality "1"]
[TimeControl "5400+30"]

1. e4 {[%emt 0:00:10]} c5 {[%emt 0:00:10]} 2. Nf3 {[%emt 0:00:12]} d6 {[%emt 0:00:20]} 3. d4 {[%emt 0:00:41]} cxd4 {[%emt 0:00:30]} 4. Nxd4 {[%emt 0:00:50]} Nf6 {[%emt 0:00:18]} 5. Nc3 {[%emt 0:00:45]} g6 {[%emt 0:00:50]} 6. Be3 {[%emt 0:01:35]} Bg7 {[%emt 0:00:37]} 7. f3 {[%emt 0:01:14]} O-O {[%emt 0:00:27]} 8. Qd2 {[%emt 0:02:21]} Nc6 {[%emt 0:00:37]} 9. O-O-O {[%emt 0:02:38]} d5 {[%emt 0:01:04]} 10. Bh6 {[%emt 0:10:06]} Nxd4 {[%emt 0:03:17]} 11. Bxg7 {[%emt 0:02:23]} Nxf3 {[%emt 0:02:17]} 12. gxf3 {[%emt 0:10:03]} Kxg7 {[%emt 0:02:49]} 13. e5 {[%emt 0:16:42]} Nd7 {[%emt 0:03:31]} 14. Qxd5 {[%emt 0:05:06]} Qc7 {[%emt 0:10:43]} 15. f4 {[%emt 0:06:40]} Nb6 {[%emt 0:05:59]} 16. Qd4 {[%emt 0:01:45]} Bf5 {[%emt 0:06:19]} 17. Bd3 {[%emt 0:08:49]} Rad8 {[%emt 0:03:09]} 18. Qe3 {[%emt 0:01:08]} Bxd3 {[%emt 0:06:14]} 19. Rxd3 {[%emt 0:01:37]} Rc8 {[%emt 0:03:15]} 20. h4 {[%emt 0:04:44]} e6 {[%emt 0:06:29]} 21. h5 {[%emt 0:04:33]} Nc4 {[%emt 0:08:20]} 22. Qg1 {[%emt 0:01:27]} f5 {[%emt 0:02:13]} 23. hxg6 {[%emt 0:05:08]} hxg6 {[%emt 0:01:06]} 24. Qh2 {[%emt 0:00:34]} Rh8 {[%emt 0:00:54]} 25. Rh3 {[%emt 0:00:11]} Qb6 {[%emt 0:06:11]} 26. Rh7+ {[%emt 0:00:48]} 1-0